bitfinex/quotes_SOLUSD_20250717
["timestamp","ask_amount","ask_price","bid_price","bid_amount"]
[1752739091909,0.8,174.13,174.12,35.41770055]
[1752739092124,0.8,174.13,174.12,65.59770055]
[1752739092334,0.1,174.13,174.12,71.34086618]
[1752739092733,0.1,174.13,174.12,60.18]
[1752739092937,0.8,174.13,174.12,65.59770055]
[1752739093150,0.1,174.13,174.12,65.59770055]
[1752739094043,0.8,174.13,174.12,65.59770055]
[1752739094630,0.8,174.13,174.12,60.18]
[1752739094956,0.8,174.13,174.12,65.59770055]
[1752739095329,11.96053636,174.13,174.06,5.74505965]
[1752739095653,0.7,174.12,174.08,35.41770055]
[1752739095848,0.7,174.12,174.08,65.57770055]
[1752739096222,5.84283581,174.13,174.09,5.41770055]
[1752739096426,0.7,174.11,174.09,5.41770055]
[1752739097036,5.84283581,174.13,174.09,5.41770055]
[1752739097289,0.7,174.1,174.09,5.41770055]
[1752739097558,0.7,174.1,174.08,35.57770055]
[1752739097930,0.7,174.12,174.09,5.41770055]
[1752739098126,0.7,174.11,174.1,30.16]
[1752739098931,0.7,174.11,174.09,30.16]
[1752739099145,11.2605519,174.13,174.09,30.16]
[1752739099460,5.84295084,174.13,174.09,35.57770055]
[1752739099627,0.7,174.12,174.09,35.57770055]
[1752739099826,0.7,174.11,174.09,35.57770055]
[1752739100048,0.7,174.11,174.09,41.32185506]
[1752739100244,0.8,174.13,174.09,41.32185506]
[1752739100433,0.1,174.13,174.1,5.41770055]
[1752739100630,0.7,174.12,174.1,5.41770055]
[1752739101372,0.7,174.12,174.09,35.90415451]
[1752739101570,0.7,174.12,174.1,5.41770055]
[1752739101757,0.7,174.12,174.11,30.16]
[1752739103660,0.7,174.12,174.1,35.57770055]
[1752739103861,0.7,174.11,174.1,35.57770055]
[1752739104362,0.7,174.11,174.1,30.16]
[1752739104562,0.7,174.11,174.1,35.57770055]
[1752739104780,0.8,174.13,174.1,35.57770055]
[1752739104964,0.7,174.12,174.1,35.57770055]
[1752739105143,0.7,174.12,174.1,30.16]
[1752739105342,0.7,174.11,174.1,35.57770055]
[1752739106362,0.7,174.11,174.08,30.14]
[1752739106566,0.7,174.11,174.04,0.64]
[1752739106739,6.11770055,174.11,174.06,5.41770055]
[1752739106946,0.7,174.1,174.07,30.14]
[1752739107244,0.7,174.09,174.07,35.55770055]
[1752739107839,5.74395092,174.1,174.07,35.55770055]
[1752739108043,0.7,174.09,174.07,35.55770055]
[1752739108652,0.7,174.11,174.07,30.14]
[1752739108962,0.7,174.1,174.08,5.41770055]
[1752739109352,0.7,174.09,174.08,5.41770055]
[1752739110062,0.7,174.09,174.07,30.14]
[1752739110245,0.7,174.09,174.08,5.41770055]
[1752739110445,0.7,174.09,174.07,30.14]
[1752739110646,0.7,174.09,174.08,5.41770055]
[1752739111556,0.7,174.09,174.07,30.14]
[1752739111757,0.7,174.09,174.04,5.41770055]
[1752739111758,5.41770055,174.08,174.04,5.41770055]
[1752739111950,0.7,174.07,174.04,35.55770055]
[1752739112767,5.74514535,174.06,174.04,30.14]
[1752739112957,0.7,174.05,174.04,30.14]
[1752739113361,0.7,174.05,174.02,5.41770055]
[1752739113554,0.7,174.04,174.02,35.53770055]
[1752739113756,0.7,174.04,174.02,30.12]
[1752739113956,0.7,174.03,174.02,35.53770055]
[1752739115159,0.7,174.05,174.02,35.53770055]
[1752739115352,0.7,174.05,174.02,30.12]
[1752739115555,0.7,174.04,174.02,35.53770055]
[1752739116966,6.44591227,174.04,174.02,30.12]
[1752739117173,0.7,174.03,174.0,35.53770055]
[1752739117372,0.7,174.03,174.0,30.12]
[1752739117973,0.7,174.03,174.0,35.53770055]
[1752739118174,0.7,174.02,174.0,35.53770055]
[1752739118563,0.7,174.01,174.0,30.12]
[1752739119975,0.7,174.03,174.0,35.53770055]
[1752739120275,0.7,174.03,174.01,5.41770055]
[1752739120477,0.7,174.05,174.02,35.53770055]
[1752739120680,0.7,174.07,174.04,5.41770055]
[1752739120858,0.7,174.09,174.06,5.41770055]
[1752739121059,0.7,174.09,174.08,5.41770055]
[1752739121271,6.44359153,174.11,174.08,5.41770055]
[1752739121473,0.7,174.1,174.07,5.41770055]
[1752739121657,0.7,174.1,174.07,35.53770055]
[1752739121858,0.7,174.1,174.08,5.41770055]
[1752739122674,0.7,174.1,174.09,5.41770055]
[1752739122861,12.75962338,174.12,174.03,26.0]
[1752739123062,5.41770055,174.1,174.05,5.41770055]
[1752739123257,0.7,174.09,174.05,5.41770055]
[1752739123665,5.41770055,174.1,174.05,5.41770055]
[1752739123854,0.7,174.08,174.05,5.41770055]
[1752739125272,0.7,174.07,174.05,5.41770055]
[1752739125474,0.7,174.07,174.04,35.86559725]
[1752739125662,0.7,174.07,174.05,5.41770055]
[1752739126265,1.5987,174.12,174.06,5.41770055]
[1752739126561,0.7,174.1,174.07,5.41770055]
[1752739126971,0.7,174.1,174.08,5.41770055]
[1752739127785,0.8,174.13,174.09,5.41770055]
[1752739127959,0.7,174.12,174.1,5.41770055]
[1752739129173,0.1,174.13,174.1,5.41770055]
[1752739129357,0.1,174.13,174.11,5.41770055]
[1752739131382,0.7,174.12,174.11,5.41770055]
[1752739131681,0.1,174.13,174.11,5.41770055]
[1752739131867,0.1,174.13,174.1,5.74378409]
[1752739131868,0.8,174.13,174.1,5.74378409]
[1752739132071,0.8,174.13,174.1,11.16148464]
[1752739132788,0.7,174.12,174.1,11.16148464]
[1752739133079,0.1,174.13,174.1,11.16148464]
[1752739133281,0.8,174.13,174.1,11.16148464]
[1752739133866,0.7,174.12,174.1,5.41770055]
[1752739135587,0.1,174.13,174.1,11.16139846]
[1752739135780,0.8,174.13,174.1,11.16139846]
[1752739136367,0.7,174.12,174.09,35.84408978]
[1752739136562,0.7,174.11,174.09,30.1]
[1752739136861,0.7,174.11,174.09,35.84404376]
[1752739137063,0.7,174.11,174.09,41.26174431]
[1752739137265,0.7,174.11,174.07,30.08]
[1752739137489,11.8612215,174.11,174.07,30.08]
[1752739137696,5.41770055,174.09,174.04,30.08]
[1752739137902,0.7,174.08,174.05,5.41770055]
[1752739138094,0.7,174.08,174.06,5.41770055]
[1752739138284,6.11770055,174.11,174.06,5.41770055]
[1752739138480,11.16093424,174.12,174.07,5.41770055]
[1752739138808,6.11770055,174.1,174.06,5.41770055]
[1752739139093,0.7,174.1,174.06,5.41770055]
[1752739139471,6.4438694,174.1,174.06,5.41770055]
[1752739139782,0.7,174.09,174.06,5.41770055]
[1752739140896,6.7577,174.13,174.08,5.41770055]
[1752739140897,0.7,174.12,174.08,5.41770055]
[1752739141070,0.7,174.11,174.08,5.41770055]
[1752739141275,0.7,174.1,174.07,30.08]
[1752739141471,0.7,174.1,174.07,35.49770055]
[1752739142072,0.7,174.1,174.07,30.08]
[1752739142273,0.7,174.1,174.07,35.49770055]
[1752739143001,0.7,174.1,174.07,30.08]
[1752739143296,0.7,174.1,174.07,35.49770055]
[1752739143495,11.87119174,174.12,174.07,41.24244884]
[1752739143699,11.16119174,174.12,174.07,41.88244884]
[1752739143869,0.71,174.11,174.07,41.88244884]
[1752739144074,0.71,174.11,174.07,41.24244884]
[1752739144602,0.1,174.13,174.1,5.41770055]
[1752739144911,0.81,174.13,174.1,5.41770055]
[1752739145274,0.1,174.13,174.11,5.41770055]
[1752739145585,0.1,174.13,174.11,11.16115152]
[1752739146513,0.1,174.13,174.11,5.41770055]
[1752739148107,0.1,174.13,174.11,11.16117554]
[1752739148403,0.1,174.13,174.11,5.41770055]
[1752739148813,0.81,174.13,174.11,5.41770055]
[1752739149399,0.71,174.12,174.1,35.47770055]
[1752739149699,0.81,174.13,174.1,35.47770055]
[1752739151002,0.71,174.12,174.1,35.47770055]
[1752739151502,0.1,174.13,174.11,5.41770055]
[1752739152484,0.71,174.12,174.11,5.41770055]
[1752739152782,0.71,174.12,174.1,35.47770055]
[1752739153000,0.1,174.13,174.1,41.22147407]
[1752739153312,0.1,174.13,174.1,36.44377352]
[1752739153604,0.1,174.13,174.12,5.41770055]
[1752739154791,0.1,174.13,174.11,11.16113637]
[1752739155597,0.1,174.13,174.11,5.41770055]
[1752739155904,0.1,174.13,174.11,11.16110486]
[1752739157595,0.1,174.13,174.11,5.41770055]
[1752739158498,0.1,174.13,174.1,36.44381751]
[1752739158713,0.1,174.13,174.11,5.41770055]
[1752739159003,0.1,174.13,174.06,22.19760569]
[1752739159004,0.71,174.12,174.07,6.3848153]
[1752739159198,0.1,174.13,174.11,5.41770055]
[1752739159385,0.1,174.13,174.12,5.41770055]
[1752739160696,0.1,174.13,174.12,6.05770055]
[1752739161886,0.1,174.13,174.11,30.04]
[1752739162204,0.1,174.13,174.12,5.41770055]
[1752739164610,0.1,174.13,174.11,30.04]
[1752739165109,0.1,174.13,174.11,35.45770055]
[1752739165702,0.81,174.13,174.11,35.45770055]
[1752739166606,5.8429814,174.13,174.11,30.04]
[1752739166789,5.8429814,174.13,174.08,8.47494989]
[1752739166790,0.71,174.12,174.1,5.41770055]
[1752739166992,0.71,174.12,174.1,35.43770055]
[1752739167390,0.1,174.13,174.11,6.05770055]
[1752739168812,0.1,174.13,174.11,5.41770055]
[1752739169494,0.1,174.13,174.1,30.02]
[1752739169701,0.71,174.12,174.1,30.02]
[1752739170018,0.71,174.12,174.1,35.43770055]
[1752739170224,0.71,174.12,174.1,30.02]
[1752739170506,0.71,174.11,174.07,35.41770055]
[1752739170713,5.41770055,174.12,174.07,35.41770055]
[1752739170714,0.71,174.1,174.07,35.41770055]
[1752739170939,0.71,174.12,174.08,5.41770055]
[1752739171096,0.71,174.12,174.07,30.0]
[1752739171294,0.71,174.12,174.08,5.41770055]
[1752739172020,0.67,174.11,174.07,5.41770055]
[1752739172218,6.41382538,174.1,174.07,5.41770055]
[1752739172402,0.67,174.09,174.06,5.41770055]
[1752739172603,0.67,174.09,174.05,5.41770055]
[1752739172819,0.67,174.09,174.05,35.41770055]
[1752739173028,11.16152593,174.1,174.05,30.0]
[1752739173214,0.67,174.08,174.05,35.41770055]
[1752739175800,6.41452772,174.08,174.05,5.41770055]
[1752739176122,6.41452772,174.08,174.05,30.0]
[1752739177516,6.41452772,174.08,174.05,35.41770055]
[1752739178103,5.41770055,174.06,174.04,7.83494989]
[1752739178303,0.67,174.05,174.01,35.41770055]
[1752739178509,6.41547901,174.05,174.01,35.41770055]
[1752739179022,11.83317956,174.05,174.01,35.41770055]
[1752739179507,0.67,174.05,174.01,41.80445247]
[1752739179908,5.74525076,174.06,174.02,5.41770055]
[1752739180105,162.45945683,174.11,174.04,5.41770055]
[1752739180420,6.08770055,174.09,174.04,5.41770055]
[1752739180623,6.41448529,174.08,174.04,5.41770055]
[1752739180815,0.67,174.07,174.03,36.05770055]
[1752739181014,0.67,174.06,174.04,5.41770055]
[1752739182020,0.67,174.05,174.03,35.41770055]
[1752739182603,0.67,174.05,174.04,5.41770055]
[1752739182804,0.67,174.05,174.03,35.41770055]
[1752739183020,0.67,174.05,174.03,30.0]
[1752739184316,0.67,174.08,174.04,5.41770055]
[1752739184518,0.67,174.07,174.04,5.41770055]
[1752739184821,0.67,174.07,174.03,6.05770055]
[1752739185824,0.67,174.06,174.03,5.41770055]
[1752739186422,5.41770055,174.07,174.03,5.41770055]
[1752739186595,0.67,174.05,174.03,5.41770055]
[1752739187410,0.67,174.05,174.01,30.64]
[1752739187604,0.67,174.04,174.01,30.0]
[1752739187919,0.67,174.03,174.01,30.0]
[1752739188219,5.7459438,174.04,174.01,30.0]
[1752739188424,0.67,174.02,173.98,0.72245473]
[1752739188729,0.67,174.01,173.98,36.12015528]
[1752739189017,0.67,174.0,173.98,0.72245473]
[1752739189220,0.67,173.99,173.98,0.72245473]
[1752739189632,6.08770055,173.99,173.98,0.72245473]
[1752739189802,11.8351573,173.99,173.98,0.72245473]
[1752739190625,6.41745675,173.99,173.98,0.72245473]
[1752739193132,5.74745675,173.99,173.98,0.72245473]
[1752739193305,5.74722001,174.0,173.98,0.72245473]
[1752739193909,6.41722001,174.0,173.98,0.72245473]
[1752739195138,5.74687614,174.01,173.98,0.72245473]
[1752739195310,5.74687614,174.01,173.98,6.14015528]
[1752739195506,153.84645913,174.03,174.0,5.41770055]
[1752739195725,0.06,174.05,174.02,5.41770055]
[1752739196028,0.06,174.05,174.03,5.41770055]
[1752739196532,0.73,174.05,174.03,5.41770055]
[1752739198422,6.47549224,174.05,174.03,5.41770055]
[1752739199635,0.73,174.05,174.03,5.41770055]
[1752739200132,0.06,174.05,174.04,5.41770055]
[1752739200316,0.73,174.05,174.01,46.76468397]
[1752739200518,0.67,174.04,174.03,5.41770055]
[1752739200848,0.06,174.05,174.03,5.41770055]
[1752739201522,0.72,174.05,174.03,5.41770055]
[1752739202038,0.72,174.05,174.01,52.51140944]
[1752739202234,0.72,174.05,174.03,5.41770055]
[1752739202617,0.06,174.05,174.03,5.41770055]
[1752739202818,5.80548249,174.05,174.03,5.41770055]
[1752739203224,5.80548249,174.05,174.02,5.41770055]
[1752739203421,0.06,174.05,174.02,5.41770055]
[1752739204221,0.06,174.05,174.03,5.41770055]
[1752739205027,0.66,174.04,173.99,8.47494989]
[1752739205223,0.66,174.04,174.0,0.64]
[1752739205427,0.06,174.05,174.03,5.41770055]
[1752739205623,0.06,174.05,174.04,0.64]
[1752739205934,0.06,174.05,174.04,6.05770055]
[1752739207523,0.06,174.05,174.04,48.84238452]
[1752739208043,0.06,174.05,174.04,54.58819008]
[1752739208217,0.06,174.12,174.04,54.58819008]
[1752739208421,0.06,174.12,174.11,5.41770055]
[1752739208945,0.06,174.12,174.1,5.41770055]
[1752739209138,0.06,174.12,174.11,5.41770055]
[1752739211230,0.06,174.12,174.11,11.80119604]
[1752739211431,0.06,174.12,174.09,29.96]
[1752739211639,0.72,174.12,174.09,35.37770055]
[1752739211833,0.72,174.12,174.11,5.41770055]
[1752739211834,0.06,174.12,174.11,5.41770055]
[1752739213033,0.72,174.12,174.09,29.96]
[1752739213228,6.13770055,174.12,174.09,29.96]
[1752739213429,0.66,174.11,174.09,29.96]
[1752739213635,6.07770055,174.1,174.06,29.94]
[1752739213840,0.66,174.09,174.06,29.94]
[1752739214041,6.40418021,174.09,174.06,29.94]
[1752739214340,0.66,174.09,174.06,29.94]
[1752739214540,6.40421121,174.09,174.06,29.94]
[1752739214962,0.66,174.08,174.03,29.94]
[1752739215176,0.66,174.08,174.04,5.41770055]
[1752739216570,6.40457795,174.08,174.04,5.41770055]
[1752739217649,6.13770055,174.12,174.07,5.41770055]
[1752739217973,6.13770055,174.12,174.05,0.64]
[1752739217974,0.66,174.11,174.08,5.41770055]
[1752739218776,0.66,174.1,174.07,5.41770055]
[1752739219070,0.66,174.09,174.07,5.41770055]
[1752739219253,11.22090468,174.12,174.07,5.41770055]
[1752739219460,0.66,174.11,174.07,5.41770055]
[1752739219662,0.66,174.1,174.07,5.41770055]
[1752739220267,0.66,174.09,174.06,35.35770055]
[1752739220763,11.82135556,174.11,174.06,35.35770055]
[1752739220976,11.16135556,174.11,174.06,35.35770055]
[1752739221270,0.66,174.1,174.07,5.41770055]
[1752739221969,0.66,174.1,174.06,29.94]
[1752739222150,0.66,174.1,174.07,5.41770055]
[1752739222561,0.06,174.12,174.08,5.41770055]
[1752739222754,0.72,174.12,174.08,5.41770055]
[1752739222953,6.4631754,174.12,174.08,5.41770055]
[1752739223173,0.66,174.11,174.08,5.41770055]
[1752739223358,0.06,174.12,174.08,6.05770055]
[1752739223554,0.06,174.12,174.09,5.41770055]
[1752739223755,0.72,174.12,174.09,5.41770055]
[1752739224070,0.66,174.11,174.08,5.41770055]
[1752739226150,0.66,174.11,174.07,5.41770055]
[1752739226351,11.16136084,174.11,174.07,5.41770055]
[1752739226578,0.66,174.1,174.07,5.41770055]
[1752739226784,0.66,174.09,174.06,29.92]
[1752739227074,0.66,174.09,174.06,35.33770055]
[1752739227466,5.74366029,174.11,174.06,35.33770055]
[1752739227785,0.66,174.1,174.06,35.33770055]
[1752739228167,0.66,174.09,174.06,35.33770055]
[1752739228973,0.66,174.08,174.06,35.33770055]
[1752739229275,5.74418012,174.09,174.06,35.33770055]
[1752739229678,6.40418012,174.09,174.06,35.33770055]
[1752739230062,6.40418012,174.09,174.06,5.41770055]
[1752739232791,6.40418012,174.09,174.04,30.56]
[1752739233078,6.40418012,174.09,174.05,5.41770055]
[1752739233278,5.74418012,174.09,174.05,5.41770055]
[1752739233487,5.41770055,174.07,174.02,6.05770055]
[1752739233679,0.66,174.06,174.01,29.9]
[1752739233872,5.41770055,174.05,174.01,35.31770055]
[1752739234076,0.66,174.04,174.01,35.31770055]
[1752739234901,0.66,174.03,173.99,5.41770055]
[1752739235099,11.16366764,174.04,173.99,35.31770055]
[1752739235398,6.07770055,174.02,173.98,0.72245473]
[1752739235680,5.41770055,174.01,173.98,0.72245473]
[1752739236197,6.07770055,174.0,173.98,0.72245473]
[1752739236580,6.07770055,173.99,173.98,0.72245473]
[1752739236981,11.8251573,173.99,173.98,0.72245473]
[1752739238984,11.8251573,173.99,173.98,0.75245473]
[1752739240800,6.40745675,173.99,173.98,0.75245473]
[1752739241000,11.8251573,173.99,173.98,0.75245473]
[1752739241392,6.40745675,173.99,173.98,0.75245473]
[1752739241597,11.8251573,173.99,173.98,0.75245473]
[1752739242712,6.40745675,173.99,173.98,0.75245473]
[1752739243416,11.8251573,173.99,173.98,0.75245473]
[1752739246507,6.40745675,173.99,173.98,0.75245473]
[1752739246714,11.8251573,173.99,173.98,0.75245473]
[1752739247456,11.8251573,173.99,173.98,0.03]
[1752739249590,6.40745675,173.99,173.98,0.03]
[1752739249896,11.8251573,173.99,173.98,0.03]
[1752739250096,6.40745675,173.99,173.98,0.03]
[1752739250286,5.74718846,174.0,173.98,0.03]
[1752739252726,11.16416647,174.02,173.98,0.67]
[1752739252904,6.40646592,174.02,173.98,6.08770055]
[1752739253100,0.66,174.01,173.98,0.03]
[1752739253716,5.74646592,174.02,173.98,6.08770055]
[1752739253900,6.40646592,174.02,173.98,5.44770055]
[1752739254309,6.40646592,174.02,173.98,0.03]
[1752739254603,6.40646592,174.02,173.98,5.44770055]
[1752739254813,5.74646592,174.02,173.98,5.44770055]
[1752739255004,0.66,174.01,173.98,5.44770055]
[1752739255218,0.66,174.01,173.98,0.03]
[1752739255804,11.16416647,174.02,173.98,0.03]
[1752739256309,11.82416647,174.02,173.98,0.03]
[1752739256507,6.40646592,174.02,173.98,5.44770055]
[1752739256707,6.40646592,174.02,173.98,6.08770055]
[1752739257146,5.74646592,174.02,173.98,6.08770055]
[1752739257420,6.40514535,174.06,174.01,5.41770055]
[1752739257604,6.40514535,174.06,174.02,5.41770055]
[1752739257800,0.66,174.05,174.03,5.41770055]
[1752739258008,6.40553571,174.05,174.03,5.41770055]
[1752739259529,6.07770055,174.07,174.03,5.41770055]
[1752739259831,0.66,174.06,174.03,5.41770055]
[1752739260403,0.66,174.06,174.01,6.38679399]
[1752739260728,0.66,174.06,174.03,5.41770055]
[1752739260933,0.66,174.06,174.02,0.64]
[1752739261104,0.66,174.05,174.03,5.41770055]
[1752739261726,0.66,174.05,174.02,5.41770055]
[1752739261930,6.09770055,174.04,173.98,0.03]
[1752739262130,6.09770055,174.03,173.98,5.44770055]
[1752739262460,0.06,174.05,174.02,5.41770055]
[1752739262630,5.80547543,174.05,174.02,5.41770055]
[1752739262831,5.80547543,174.05,173.99,5.74727132]
[1752739262832,0.06,174.05,174.03,5.41770055]
[1752739263034,0.06,174.05,174.01,0.64]
[1752739263213,0.06,174.05,174.03,5.41770055]
[1752739264013,0.06,174.05,174.04,6.05770055]
[1752739265323,0.06,174.05,174.04,5.41770055]
[1752739265516,0.06,174.05,174.02,0.64]
[1752739265723,0.74,174.05,174.02,5.41770055]
[1752739266232,6.48556245,174.05,174.02,5.41770055]
[1752739266818,0.68,174.04,173.98,31.77767346]
[1752739267019,0.68,174.04,173.99,5.41770055]
[1752739267214,6.09770055,174.04,173.99,5.41770055]
[1752739267409,6.09770055,174.03,173.98,0.03]
[1752739267610,6.09770055,174.03,173.98,5.44770055]
[1752739267809,0.68,174.02,173.98,5.44770055]
[1752739268011,0.68,174.01,173.98,0.03]
[1752739268213,6.42685602,174.01,173.98,0.03]
[1752739268533,0.68,174.03,173.98,6.08770055]
[1752739268833,6.09770055,174.02,173.98,0.03]
[1752739269017,5.41770055,174.01,173.98,0.03]
[1752739269220,6.09770055,174.01,173.98,0.03]
[1752739269420,0.68,174.0,173.98,0.03]
[1752739269736,6.09770055,174.0,173.98,0.03]
[1752739270238,6.42745675,173.99,173.98,0.03]
[1752739270733,11.8451573,173.99,173.98,0.03]
[1752739274950,6.42745675,173.99,173.98,0.03]
[1752739275119,11.8451573,173.99,173.98,0.03]
[1752739275738,0.68,173.99,173.98,0.03]
[1752739275963,6.42745675,173.99,173.98,0.03]
[1752739276255,11.8451573,173.99,173.98,0.03]
[1752739277957,6.42745675,173.99,173.98,0.03]
[1752739278121,11.8451573,173.99,173.98,0.03]
[1752739282834,31.41770055,173.96,173.95,0.03]
[1752739283036,61.27770055,173.96,173.95,0.03]
[1752739283247,29.86,173.96,173.95,0.03]
[1752739283950,35.95770055,173.96,173.95,0.03]
[1752739284253,41.70614846,173.96,173.95,0.03]
[1752739286052,67.70614846,173.96,173.95,0.03]
[1752739287766,32.42844791,173.96,173.95,0.03]
[1752739288057,67.70614846,173.96,173.95,0.03]
[1752739291142,84.49083243,173.96,173.95,0.03]
[1752739292244,62.28844791,173.96,173.95,0.03]
[1752739292498,67.70614846,173.96,173.95,0.03]
[1752739292936,37.84614846,173.96,173.95,0.03]
[1752739293140,67.70614846,173.96,173.95,0.03]
[1752739293641,11.84614846,173.96,173.95,0.03]
[1752739293846,41.70614846,173.96,173.95,0.03]
[1752739294046,5.74837907,173.97,173.95,0.03]
[1752739294256,29.84,173.96,173.95,0.03]
[1752739294451,5.74837907,173.97,173.95,0.03]
[1752739294761,35.58837907,173.97,173.95,0.03]
[1752739296148,5.74679616,174.01,173.95,0.03]
[1752739296357,29.84,174.0,173.97,5.41770055]
[1752739296749,30.49,174.0,173.97,5.41770055]
[1752739296966,29.84,174.0,173.97,5.41770055]
[1752739297168,6.06770055,173.99,173.95,5.44770055]
[1752739297370,30.49,173.98,173.95,0.03]
[1752739297569,5.74811749,173.97,173.95,0.03]
[1752739297885,36.2378335,173.98,173.95,0.03]
[1752739298249,0.65,173.97,173.95,0.03]
[1752739299997,5.74844791,173.96,173.95,0.03]
[1752739300168,6.39844791,173.96,173.95,0.03]
[1752739300870,41.65614846,173.96,173.95,0.03]
[1752739301260,36.23844791,173.96,173.95,0.03]
[1752739301568,41.65614846,173.96,173.95,0.03]
[1752739301778,36.23844791,173.96,173.95,0.03]
[1752739302071,41.65614846,173.96,173.95,0.03]
[1752739306957,36.23844791,173.96,173.95,0.03]
[1752739307276,41.65614846,173.96,173.95,0.03]
[1752739308562,36.23844791,173.96,173.95,0.03]
[1752739308763,41.65614846,173.96,173.95,0.03]
[1752739309362,58.44083243,173.96,173.95,0.03]
[1752739312463,41.65614846,173.96,173.95,0.03]
[1752739312664,5.74844791,173.96,173.95,0.03]
[1752739312863,35.56844791,173.96,173.95,0.03]
[1752739313064,36.21844791,173.96,173.95,0.03]
[1752739313263,41.63614846,173.96,173.95,0.03]
[1752739314765,36.21844791,173.96,173.95,0.03]
[1752739314972,35.56844791,173.96,173.95,0.03]
[1752739315791,36.21844791,173.96,173.95,0.03]
[1752739316179,41.63614846,173.96,173.95,0.03]
[1752739318462,36.21844791,173.96,173.95,0.03]
[1752739318677,41.63614846,173.96,173.95,0.03]
[1752739320884,58.42083243,173.96,173.95,0.03]
[1752739321196,58.42083243,173.96,173.95,1e-08]
[1752739322092,58.42083243,173.96,173.91,0.03]
[1752739322093,42.78468397,173.92,173.91,1e-08]
[1752739322291,26.0,173.89,173.88,1e-08]
[1752739322494,26.0,173.89,173.85,1e-08]
[1752739322495,42.78468397,173.86,173.85,1e-08]
[1752739322797,52.02238452,173.86,173.85,1e-08]
[1752739323004,52.69238452,173.86,173.85,1e-08]
[1752739323709,29.82,173.86,173.85,1e-08]
[1752739324110,35.57175428,173.86,173.85,1e-08]
[1752739324601,40.98945483,173.86,173.85,1e-08]
[1752739324779,58.4441388,173.86,173.85,1e-08]
[1752739330204,94.4441388,173.86,173.85,1e-08]
[1752739330722,96.0922388,173.86,173.85,1e-08]
[1752739331215,26.0,173.83,173.81,0.03]
[1752739331394,52.02238452,173.82,173.81,0.03]
[1752739331706,52.69238452,173.82,173.81,0.03]
[1752739332093,17.45468397,173.82,173.81,0.03]
[1752739332513,52.69238452,173.82,173.81,0.03]
[1752739333390,58.44546241,173.82,173.81,0.03]
[1752739334387,53.02776186,173.82,173.81,0.03]
[1752739334587,58.44546241,173.82,173.81,0.03]
[1752739335228,206.54546241,173.82,173.81,0.03]
[1752739337799,206.54546241,173.82,173.81,1e-08]
[1752739338619,206.54546241,173.82,173.78,0.03]
[1752739338931,26.0,173.76,173.74,0.03]
[1752739339096,78.02238452,173.76,173.74,0.03]
[1752739339294,84.44744897,173.76,173.74,0.03]
[1752739340406,5.75506445,173.76,173.74,0.03]
[1752739340595,29.82,173.76,173.75,0.67]
[1752739341318,29.82,173.76,173.75,6.08770055]
[1752739341521,35.57506445,173.76,173.75,0.03]
[1752739342014,40.992765,173.76,173.75,0.03]
[1752739342219,35.57506445,173.76,173.75,0.03]
[1752739342521,41.662765,173.76,173.75,0.03]
[1752739342716,36.24506445,173.76,173.75,0.03]
[1752739342898,41.662765,173.76,173.75,0.03]
[1752739343510,36.24506445,173.76,173.75,0.03]
[1752739343724,35.57506445,173.76,173.75,0.03]
[1752739343916,40.992765,173.76,173.75,0.03]
[1752739344109,31.83934483,173.8,173.75,0.67]
[1752739344302,40.99177155,173.79,173.75,0.67]
[1752739344620,36.244071,173.79,173.75,0.03]
[1752739345094,5.754071,173.79,173.76,0.64]
[1752739345298,29.82,173.78,173.76,0.64]
[1752739345806,5.75473326,173.77,173.75,0.03]